bitfinex/quotes_ETHUSD_20250511
["timestamp","ask_amount","ask_price","bid_price","bid_amount"]
[1746922365402,3.87061323,2583.6,2582.9,0.7621]
[1746922365631,3.87095445,2583.4,2582.0,0.7621]
[1746922365814,0.04839435,2583.3,2582.3,0.55]
[1746922366013,0.04839292,2583.6,2582.6,0.7621]
[1746922366214,4.909,2583.7,2582.7,6.68937379]
[1746922366414,0.04839288,2583.9,2582.9,0.55]
[1746922366617,0.04838483,2583.9,2582.9,8.0]
[1746922366819,0.04838483,2583.9,2583.0,0.01935768]
[1746922367224,0.04838483,2583.9,2583.0,1.31079345]
[1746922367395,0.04838483,2583.9,2583.1,0.55]
[1746922367592,4.908,2584.2,2583.3,0.7621]
[1746922367804,4.908,2584.2,2583.4,0.01934814]
[1746922368025,0.04838006,2583.9,2583.3,8.7621]
[1746922368229,3.87034929,2583.8,2582.8,5.6571]
[1746922368433,0.0483898,2583.7,2582.9,8.0]
[1746922368943,3.87095239,2583.4,2582.4,1.6171]
[1746922369238,0.04839633,2583.3,2582.4,0.7621]
[1746922369621,3.9189018,2583.7,2582.5,0.01938108]
[1746922369820,0.04839653,2583.7,2582.5,0.01938108]
[1746922370032,0.04839257,2583.7,2582.5,0.56937317]
[1746922370229,0.04839257,2583.7,2582.5,0.55]
[1746922371425,0.04839257,2583.7,2582.4,0.7621]
[1746922371605,3.87134397,2583.1,2582.4,0.7621]
[1746922371803,0.04839946,2583.0,2582.4,0.7621]
[1746922372143,0.04839946,2583.1,2582.4,0.7621]
[1746922372298,0.04840316,2583.2,2582.4,0.7621]
[1746922372706,4.908,2583.3,2582.5,0.5693729]
[1746922373640,0.04838984,2583.9,2582.9,0.55]
[1746922373804,0.04838984,2583.9,2582.9,8.55]
[1746922374116,0.04838984,2583.9,2583.1,8.0]
[1746922374314,0.04838984,2583.9,2583.1,14.12]
[1746922375651,0.04838984,2583.9,2583.2,0.01935821]
[1746922376507,0.55,2583.8,2583.2,0.01935821]
[1746922376707,0.8075,2582.8,2581.7,0.8162]
[1746922376906,4.95641086,2582.7,2581.7,0.8162]
[1746922377148,4.908,2582.7,2581.7,0.8162]
[1746922377312,0.04840314,2583.1,2582.1,0.01938875]
[1746922377508,0.04839633,2583.3,2582.2,0.8162]
[1746922377747,4.95639516,2583.7,2582.3,0.56937834]
[1746922378056,4.95639516,2583.7,2582.3,0.55]
[1746922379148,4.95639516,2583.7,2582.2,0.8162]
[1746922379308,3.87065587,2583.6,2582.2,0.8162]
[1746922379504,0.8075,2583.4,2581.9,0.55]
[1746922379713,3.87129298,2583.2,2581.5,0.8162]
[1746922379957,4.79982007,2583.1,2581.5,0.8162]
[1746922380123,3.87161105,2583.0,2581.5,0.8162]
[1746922380309,0.04840785,2582.9,2581.5,0.8162]
[1746922380507,4.908,2582.8,2581.5,0.8162]
[1746922380711,0.7508,2582.6,2581.5,0.8162]
[1746922380949,0.04841471,2582.5,2581.5,0.8162]
[1746922381845,3.51893353,2582.5,2581.5,0.8162]
[1746922382047,0.42697335,2582.4,2581.5,0.8162]
[1746922382210,0.04841477,2582.3,2581.5,0.8162]
[1746922382612,0.04841477,2582.4,2581.6,6.13941756]
[1746922382813,8.37951882,2583.3,2581.9,0.55]
[1746922383061,0.04839935,2583.2,2582.1,8.0]
[1746922383261,0.89119117,2583.2,2582.1,8.0]
[1746922383417,7.34207526,2583.0,2582.1,8.0]
[1746922383615,3.87222445,2582.5,2581.8,0.82]
[1746922383883,0.04841409,2582.4,2581.8,0.82]
[1746922384163,0.04840945,2582.7,2581.8,0.82]
[1746922384345,0.04840945,2582.7,2581.8,0.83940693]
[1746922384662,0.04840945,2582.7,2581.8,0.82]
[1746922385416,0.5409504,2582.7,2581.8,0.82]
[1746922386535,4.41294729,2582.7,2581.4,0.82]
[1746922386731,0.7508,2582.4,2581.4,0.82]
[1746922386934,3.9210073,2582.3,2581.4,0.82]
[1746922387126,0.04841443,2582.3,2581.4,0.82]
[1746922387333,3.87267288,2582.2,2581.2,2.54176165]
[1746922387542,5.15291373,2581.9,2581.2,2.54176165]
[1746922387819,0.7508,2581.7,2581.2,2.54176165]
[1746922388048,0.04842894,2581.6,2581.2,2.54176165]
[1746922388519,0.04842894,2581.6,2581.1,2.54176165]
[1746922389329,0.61605183,2581.6,2581.1,2.54176165]
[1746922389729,0.04842894,2581.6,2581.1,2.54176165]
[1746922390750,3.87379619,2581.5,2581.1,2.54176165]
[1746922390953,0.04843171,2581.4,2581.1,2.54176165]
[1746922391263,3.92231597,2581.4,2581.1,2.54176165]
[1746922391468,3.87410627,2581.3,2581.1,2.54176165]
[1746922391622,5.08565441,2581.2,2581.1,2.54176165]
[1746922391826,0.81923356,2581.2,2581.1,2.54176165]
[1746922392043,0.81923356,2581.2,2580.1,8.0]
[1746922392265,0.81923356,2581.2,2580.0,2.54176165]
[1746922392266,5.70291373,2581.1,2580.0,2.54176165]
[1746922392564,3.87505697,2580.7,2580.0,2.54176165]
[1746922392748,0.43595847,2580.6,2580.0,2.54176165]
[1746922393270,0.04845035,2580.6,2580.1,8.01947747]
[1746922393474,3.9231091,2580.9,2580.1,8.0]
[1746922393670,0.04844269,2580.9,2580.1,8.0]
[1746922394260,0.04844269,2580.9,2580.2,0.7823]
[1746922394436,0.04843894,2581.3,2580.5,0.55]
[1746922394766,0.04843894,2581.3,2580.4,8.0]
[1746922394767,0.04843048,2581.9,2580.8,0.55]
[1746922394929,4.879,2582.0,2580.9,0.01943042]
[1746922395127,0.0484184,2581.9,2580.8,0.55]
[1746922395324,0.0484184,2581.9,2580.7,0.7823]
[1746922396224,0.04842835,2582.1,2581.0,0.55]
[1746922396429,13.938,2582.4,2581.3,0.55]
[1746922396630,0.04840953,2582.3,2581.4,0.01940709]
[1746922396835,0.04840953,2582.3,2581.3,0.55]
[1746922397164,13.938,2582.4,2581.4,0.01940942]
[1746922397376,2.58479711,2582.2,2581.3,0.55]
[1746922397677,2.58479711,2582.2,2581.4,0.01941505]
[1746922397974,0.04841351,2582.1,2581.2,0.7604]
[1746922398475,0.85721351,2582.1,2581.2,0.7604]
[1746922398829,0.85721351,2582.1,2580.7,0.7604]
[1746922399025,0.85721351,2582.1,2580.8,0.5694392]
[1746922399232,1.20141457,2582.1,2580.8,0.0194392]
[1746922399428,0.85721351,2582.1,2580.8,0.01942902]
[1746922399832,0.85721351,2582.1,2580.8,0.56943642]
[1746922400560,0.04841351,2582.1,2581.0,0.55]
[1746922400874,4.88,2582.9,2581.5,0.55]
[1746922401176,0.04840565,2582.8,2581.6,0.752]
[1746922401375,0.54124622,2582.8,2581.6,0.752]
[1746922401576,4.88,2582.9,2581.7,0.56940844]
[1746922401729,0.04839737,2583.3,2581.9,0.55]
[1746922401936,0.04839737,2583.3,2582.1,8.55]
[1746922402271,0.04839737,2583.3,2582.4,0.55]
[1746922402272,0.04839329,2583.3,2582.4,0.55]
[1746922402456,4.879,2583.8,2582.4,0.55]
[1746922402643,4.879,2583.8,2582.7,0.55]
[1746922402839,0.04838618,2583.7,2582.7,0.55]
[1746922403039,5.3669,2583.8,2582.8,0.01936044]
[1746922403234,0.04838247,2583.7,2582.7,0.55]
[1746922403747,0.04838623,2583.7,2582.9,0.752]
[1746922403951,3.4656097,2583.5,2582.5,0.752]
[1746922404173,0.39979727,2583.4,2582.5,0.752]
[1746922404747,0.39979727,2583.4,2582.6,0.0193792]
[1746922405076,3.51400505,2583.9,2582.6,0.5693777]
[1746922405380,3.51400505,2583.9,2582.6,0.55]
[1746922405940,2.58479711,2584.0,2582.9,0.752]
[1746922406136,2.58479711,2584.0,2583.3,0.55]
[1746922406351,2.58479711,2584.0,2583.4,0.752]
[1746922406564,2.58479711,2584.0,2583.5,0.01932911]
[1746922406771,2.58479711,2584.0,2583.7,0.55]
[1746922406986,0.04836998,2584.9,2583.8,0.01932799]
[1746922407282,0.04836078,2585.0,2584.0,8.55]
[1746922408174,0.04836078,2585.0,2584.0,8.0]
[1746922409187,3.51397048,2585.0,2584.1,0.01931437]
[1746922409655,0.04836078,2585.0,2584.1,0.01931437]
[1746922409859,3.51397048,2585.0,2584.0,8.0]
[1746922410167,3.51397048,2585.0,2584.0,0.01932226]
[1746922410683,0.04836078,2585.0,2584.0,0.01932226]
[1746922410981,0.04836078,2585.0,2583.9,0.752]
[1746922411544,3.51397048,2585.0,2583.9,0.752]
[1746922411759,0.83919705,2584.9,2583.9,0.752]
[1746922411956,0.04837017,2584.8,2583.9,0.752]
[1746922412386,3.4656097,2584.6,2583.5,8.752]
[1746922412589,3.4656097,2584.2,2583.6,0.0193358]
[1746922412791,0.04837961,2584.1,2583.5,0.752]
[1746922412992,3.5139854,2584.6,2583.5,0.752]
[1746922413154,0.43067854,2584.5,2583.5,0.752]
[1746922413348,0.04837347,2584.4,2583.5,0.752]
[1746922413647,3.4656097,2584.2,2583.5,0.752]
[1746922413867,4.88837893,2584.1,2583.1,0.752]
[1746922414478,3.4656097,2583.8,2583.1,0.752]
[1746922414680,3.4656097,2583.4,2582.7,0.7859]
[1746922414892,0.04839404,2583.3,2582.7,0.7859]
[1746922415262,0.04839326,2583.7,2582.7,0.7859]
[1746922415464,0.04839326,2583.7,2582.8,0.0193702]
[1746922415645,0.04839326,2583.7,2582.7,0.7859]
[1746922415853,3.4656097,2583.4,2582.7,0.7859]
[1746922416071,0.0483933,2583.3,2582.7,0.7859]
[1746922416852,0.04839321,2583.7,2582.7,0.7859]
[1746922417251,0.04839321,2583.7,2582.8,0.01935905]
[1746922417452,0.04839321,2583.7,2582.7,0.7859]
[1746922417654,0.04839321,2583.7,2582.8,0.56936725]
[1746922417959,9.1145097,2584.6,2583.1,0.7937]
[1746922418163,0.04837597,2584.4,2583.2,8.01933998]
[1746922418396,0.04837597,2584.4,2583.2,8.0]
[1746922418691,0.04837425,2584.5,2583.4,8.0]
[1746922418862,4.84,2584.6,2583.6,8.7937]
[1746922420367,4.84,2584.6,2583.7,0.56932254]
[1746922420600,4.84,2584.6,2584.1,0.75]
[1746922421201,0.048363,2584.5,2584.1,0.75]
[1746922422209,4.84,2584.6,2584.1,0.75]
[1746922422507,4.84,2584.6,2583.6,0.01932556]
[1746922422508,0.04836877,2584.5,2583.6,0.75]
[1746922422681,0.04836877,2584.5,2583.2,4.828]
[1746922422682,3.4656097,2584.0,2583.2,0.75]
[1746922422864,0.7926,2583.8,2582.8,0.75]
[1746922423065,0.04839127,2583.7,2582.8,0.75]
[1746922423395,4.88739127,2583.7,2582.8,0.75]
[1746922423869,3.4656097,2583.6,2582.8,0.75]
[1746922424079,0.04839299,2583.5,2582.9,0.0193717]
[1746922424616,0.04839299,2583.5,2582.8,0.75]
[1746922424617,0.04839299,2583.5,2582.5,2.54176165]
[1746922424899,0.8077,2583.1,2582.1,0.75]
[1746922425097,0.04840383,2583.0,2582.1,0.75]
[1746922425903,0.04840383,2583.0,2582.2,0.55]
[1746922426106,0.04840383,2583.0,2582.1,0.75]
[1746922426266,0.04840203,2583.1,2582.1,0.75]
[1746922426469,0.3998032,2583.1,2582.1,0.75]
[1746922427174,3.4656097,2582.4,2581.6,0.7927]
[1746922427388,0.04841472,2582.3,2580.6,6.12]
[1746922427587,3.4656097,2582.0,2581.0,0.7927]
[1746922427791,0.04842312,2581.9,2581.4,8.0]
[1746922428101,0.04842336,2582.1,2581.5,0.01942644]
[1746922428407,4.84,2582.8,2581.6,0.55]
[1746922428767,4.84,2582.8,2581.7,0.7927]
[1746922428969,0.04839873,2583.3,2581.9,8.7927]
[1746922429191,0.04838625,2583.9,2582.2,0.7927]
[1746922429393,0.04838625,2583.9,2582.4,8.0]
[1746922429702,0.04838625,2583.9,2582.6,8.0]
[1746922430561,4.72632874,2583.9,2582.5,0.1795941]
[1746922430766,0.85608321,2583.9,2582.6,0.01937169]
[1746922430992,0.85608321,2583.9,2582.5,0.55]
[1746922431191,0.85608321,2583.9,2582.6,0.01936284]
[1746922431402,1.42569153,2583.9,2582.7,0.55]
[1746922432098,4.88838507,2584.0,2583.0,0.55]
[1746922432303,3.4656097,2584.2,2583.0,0.55]
[1746922432304,0.04838019,2584.2,2583.0,6.67]
[1746922432508,0.04838019,2584.3,2583.2,0.55]
[1746922432691,0.04838019,2584.3,2583.0,0.55]
[1746922433003,0.04838019,2584.3,2583.0,8.55]
[1746922433195,0.85607624,2584.4,2583.1,1.56561051]
[1746922433393,0.85607624,2584.4,2583.3,8.55]
[1746922433699,0.85607624,2584.4,2583.4,0.01933512]
[1746922433905,0.85607624,2584.4,2583.3,8.55]
[1746922434100,0.85607624,2584.4,2583.3,8.0]
[1746922434311,0.0483779,2584.3,2583.3,8.0]
[1746922434799,0.0483779,2584.3,2583.4,0.01934773]
[1746922435010,0.0483779,2584.3,2583.3,8.0]
[1746922435494,3.4656097,2585.0,2583.5,8.0]
[1746922435674,0.04836486,2584.9,2583.6,8.16440477]
[1746922436306,0.04836486,2584.9,2583.7,8.0]
[1746922436872,3.4656097,2584.6,2583.5,8.0]
[1746922437070,0.7614,2584.4,2583.5,8.0]
[1746922437284,0.61335729,2584.3,2583.4,0.8047]
[1746922437602,0.61335729,2584.3,2583.2,8.0]
[1746922437603,3.4656097,2584.2,2583.2,8.0]
[1746922437817,3.4656097,2583.8,2582.6,0.8047]
[1746922438102,3.4656097,2583.4,2582.2,6.9247]
[1746922438300,4.88739715,2583.3,2582.3,0.01938234]
[1746922438800,4.88739715,2583.3,2582.2,7.87134617]
[1746922439110,0.7614,2583.2,2582.2,0.8047]
[1746922439264,0.04840411,2583.1,2582.1,2.54176165]
[1746922439894,0.04840411,2583.1,2582.2,8.0]
[1746922440302,0.04840411,2583.1,2582.1,2.54176165]
[1746922440882,0.04840411,2583.1,2581.9,0.8047]
[1746922441202,0.61328452,2583.1,2581.9,0.8047]
[1746922441679,0.04840411,2583.1,2581.9,0.8047]
[1746922441885,0.04840411,2583.1,2582.0,0.55]
[1746922442283,5.15045248,2583.0,2581.7,6.12]
[1746922442482,0.8197,2582.6,2581.3,2.54176165]
[1746922442683,0.04841799,2582.5,2581.4,0.01941818]
[1746922442997,0.93522979,2582.5,2581.4,0.25611798]
[1746922443308,0.04841145,2582.7,2581.5,6.67]
[1746922443516,0.04840368,2582.7,2581.6,13.5509]
[1746922443809,13.929,2582.8,2581.7,0.01939221]
[1746922444025,13.929,2582.8,2581.7,0.55]
[1746922444210,0.04840207,2582.7,2581.7,0.55]
[1746922444517,0.04840207,2582.7,2581.8,1.41009]
[1746922445175,0.04840207,2582.7,2581.9,0.01939601]
[1746922445376,0.04840207,2582.7,2582.0,8.0]
[1746922445685,0.04840399,2582.7,2582.0,8.0]
[1746922445883,13.929,2582.8,2582.0,8.0]
[1746922446084,0.04839851,2582.7,2582.0,8.0]
[1746922446871,3.92034301,2582.7,2581.9,6.12]
[1746922447079,4.66184827,2582.6,2581.2,0.7905]
[1746922447278,3.8723884,2582.4,2581.2,6.9105]
[1746922447477,0.44050008,2582.3,2581.3,8.01942344]
[1746922447718,0.04841688,2582.5,2581.3,8.0]
[1746922448014,3.87257471,2582.3,2581.2,6.9105]
[1746922448219,0.04841913,2582.2,2581.2,6.9105]
[1746922448602,0.04841913,2582.2,2581.3,8.0]
[1746922448780,3.92111872,2582.2,2581.3,8.0]
[1746922448975,4.8,2582.1,2581.3,8.0]
[1746922449309,4.8,2582.1,2581.3,8.01942644]
[1746922449521,0.04841694,2582.5,2581.4,0.55]
[1746922449820,0.04840708,2582.7,2581.6,9.3405]
[1746922449980,0.04840112,2582.7,2581.6,9.3405]
[1746922450629,0.04840112,2582.7,2581.7,0.01940256]
[1746922450795,0.04840112,2582.7,2581.8,0.55]
[1746922450972,0.04840112,2582.7,2581.9,0.0194025]
[1746922451179,0.04840112,2582.7,2581.8,8.0]
[1746922451481,0.8131,2582.6,2581.8,8.0]
[1746922451679,0.8131,2582.6,2581.0,6.9291]
[1746922451680,0.04841473,2582.5,2581.0,6.9291]
[1746922451878,3.87289525,2582.1,2581.0,0.8091]
[1746922452079,4.84842113,2582.0,2581.0,0.8091]
[1746922452327,3.87355551,2581.7,2580.5,8.66176165]
[1746922452497,0.04843177,2581.6,2580.5,2.54176165]
[1746922452880,0.8131,2580.6,2580.5,2.54176165]
[1746922453080,5.6131,2580.6,2580.5,2.54176165]
[1746922454199,0.8131,2580.6,2580.5,2.54176165]
[1746922454404,4.801,2580.8,2580.5,2.54176165]
[1746922454600,4.84944118,2581.3,2580.5,2.54176165]
[1746922454901,0.8131,2581.4,2580.7,0.55]
[1746922455437,0.04842701,2581.7,2580.7,0.55]
[1746922455574,0.04842018,2581.7,2580.7,0.55]
[1746922455780,0.04842254,2581.9,2580.6,8.25417617]
[1746922456116,3.87341674,2581.7,2580.6,8.25417617]
[1746922456303,0.04843174,2581.6,2580.6,8.0]
[1746922456499,0.8131,2581.5,2580.6,8.0]
[1746922456739,0.04843169,2581.4,2580.5,0.55]
[1746922456943,0.52194721,2581.4,2580.1,0.8091]
[1746922457140,0.04843169,2581.4,2580.2,0.01945146]
[1746922457442,0.04843169,2581.4,2580.2,0.56945146]
[1746922457936,0.04843169,2581.4,2580.2,0.55]
[1746922458353,0.04843169,2581.4,2580.3,0.56945152]
[1746922458654,0.04843169,2581.4,2580.2,0.55]
[1746922458827,0.04843169,2581.4,2580.1,8.8091]
[1746922458828,3.92234667,2581.4,2580.1,8.8091]
[1746922459011,0.47354467,2581.3,2580.2,1.35881]
[1746922459216,0.04843708,2581.2,2580.2,1.3782722]
[1746922459457,0.04843235,2581.4,2580.3,0.55]
[1746922459639,0.86152728,2581.9,2580.4,6.13944258]
[1746922459971,5.66352728,2581.9,2580.7,0.55]
[1746922460111,13.935,2582.3,2580.9,8.55]
[1746922460316,13.935,2582.3,2581.3,0.55]
[1746922460535,0.04841211,2582.2,2581.5,0.55]
[1746922460760,0.04841211,2582.2,2581.4,8.0]
[1746922461324,0.04841211,2582.2,2581.1,8.0]
[1746922461656,5.91345248,2582.1,2580.7,0.7725]
[1746922461816,0.04842923,2582.0,2580.8,6.12]
[1746922462143,0.04842923,2582.0,2580.9,9.23925]
[1746922462553,0.04842923,2582.0,2581.0,0.01943232]
[1746922462967,0.04842923,2582.0,2580.9,0.55]
[1746922463253,3.92144605,2582.0,2580.9,0.55]
[1746922463555,0.04842923,2582.0,2580.9,8.55]
[1746922463737,4.73699511,2582.0,2580.9,8.0]
[1746922464055,0.8640193,2582.0,2580.9,0.01943695]
[1746922464745,0.8640193,2582.0,2580.8,0.55]
[1746922465822,4.73708153,2582.0,2580.9,0.01943845]
[1746922466020,4.73708153,2582.0,2580.8,0.55]
[1746922466220,7.34518899,2581.8,2580.7,8.7725]
[1746922466420,3.47178235,2581.4,2580.3,0.8174]
[1746922466660,4.85043842,2581.3,2580.3,0.8174]
[1746922466835,4.85043842,2581.3,2580.4,0.01946022]
[1746922467020,4.85043842,2581.3,2580.4,0.55]
[1746922467221,0.83222208,2581.2,2580.1,6.12]
[1746922467549,0.8318,2581.0,2580.2,8.0]
[1746922467728,0.04844083,2580.9,2580.1,6.12]
[1746922468117,0.04844083,2580.9,2580.2,8.0]
[1746922468320,0.04844083,2580.9,2580.2,1.43146923]
[1746922468557,0.04844083,2580.9,2580.3,0.56946357]
[1746922468761,0.8318,2581.0,2580.3,0.56946357]
[1746922469060,3.87314443,2581.9,2580.3,0.56946357]
[1746922469061,5.6348,2581.4,2580.3,0.56946357]
[1746922469362,4.803,2581.4,2580.5,0.55]
[1746922469572,0.04842993,2581.3,2580.5,0.55]
[1746922469727,0.04842993,2581.3,2580.5,9.96314]
[1746922470237,0.04842993,2581.3,2580.5,1.96314]
[1746922470474,0.04842993,2581.3,2580.5,0.55]
[1746922470633,4.803,2581.4,2580.5,0.55]
[1746922470834,8.67689271,2581.4,2580.5,0.55]
[1746922471035,0.7767,2581.2,2580.0,8.8274]
[1746922471267,0.04843647,2581.1,2580.0,8.8274]
[1746922471471,0.86555241,2581.1,2580.0,14.9474]
[1746922471754,0.04843647,2581.1,2580.1,0.55]
[1746922471962,3.79691882,2581.2,2580.0,14.12]
[1746922472134,0.0289755,2581.1,2580.0,14.12]
[1746922474060,0.0289755,2581.1,2580.2,0.55]
[1746922474560,0.0289755,2581.1,2580.4,0.55]
[1746922475167,0.0289755,2581.1,2580.0,14.12]
[1746922475168,0.0289755,2581.1,2580.1,0.55]
[1746922475497,0.0289755,2581.1,2580.2,0.03875014]
[1746922476027,0.35411197,2581.2,2580.3,0.55]
[1746922476329,0.32513647,2581.2,2580.5,0.55]
[1746922476652,0.0289755,2581.1,2580.2,0.55]
[1746922476963,0.0289755,2581.1,2580.3,1.015474]
[1746922478465,0.0289755,2581.1,2580.2,0.55]
[1746922478858,0.0289755,2581.1,2580.1,9.60474]
[1746922479233,0.0289755,2581.1,2580.1,8.0]
[1746922479435,0.7767,2581.0,2579.5,0.8274]
[1746922479641,0.7767,2580.7,2579.5,0.8274]
[1746922479850,0.0289755,2580.6,2579.5,0.8274]
[1746922480053,4.757,2580.5,2579.5,0.8274]
[1746922480249,0.0289755,2580.4,2579.5,1.52214]
[1746922480548,0.0289755,2580.4,2579.3,4.93041105]
[1746922481252,0.0289755,2580.4,2579.4,8.0]
[1746922481438,0.0289755,2580.4,2579.5,0.03876251]
[1746922481839,0.0289755,2580.4,2579.1,8.795]
[1746922482035,0.0289755,2580.4,2579.2,0.03876531]
[1746922482337,0.50757305,2580.4,2579.2,1.17631801]
[1746922483375,0.50757305,2580.4,2579.3,0.55]
[1746922483575,0.50757305,2580.4,2579.4,0.03876022]
[1746922483776,0.50757305,2580.4,2579.3,0.55]
[1746922484076,0.0289755,2580.4,2579.5,0.55]
[1746922484238,0.0289755,2580.4,2579.6,0.03875911]
[1746922484438,0.0289755,2580.4,2579.2,0.55]
[1746922484677,0.0289755,2580.4,2579.3,0.03875915]
[1746922484843,0.0289755,2580.4,2579.2,0.55]
[1746922485044,0.0289755,2580.4,2579.2,8.7268859]
[1746922485353,0.0289755,2580.4,2579.3,0.03875915]
[1746922485685,0.0289755,2580.4,2579.4,0.55]
[1746922485845,0.7652,2581.6,2579.7,0.7597]
[1746922486037,8.7652,2581.6,2579.9,8.0]
[1746922486253,3.87387635,2581.4,2580.0,0.55]
[1746922486470,0.7652,2581.2,2579.8,0.55]
[1746922486783,0.7652,2581.2,2580.1,0.55]
[1746922486940,8.7652,2581.2,2580.1,0.55]
[1746922487141,0.7652,2581.2,2580.2,0.03875017]
[1746922487442,1.31752,2581.2,2579.8,0.55]
[1746922487759,9.31752,2581.2,2579.8,0.55]
[1746922488141,8.7652,2581.2,2579.9,0.03875225]
[1746922488344,0.7652,2581.2,2579.9,0.03875225]
[1746922488840,0.7652,2581.2,2579.8,8.55]
[1746922489241,0.7652,2581.2,2579.9,0.55]
[1746922489790,4.63977695,2581.0,2579.7,0.7597]
[1746922489944,0.85142168,2580.9,2579.6,4.731]
[1746922490146,0.85142168,2580.9,2579.7,8.03875923]
[1746922490370,0.7652,2581.0,2579.7,8.03875923]
[1746922490869,0.7652,2581.0,2579.7,8.0]
[1746922491255,3.87470987,2580.9,2579.6,4.731]
[1746922491451,4.63971616,2581.0,2579.7,8.0]
[1746922491651,4.63974273,2581.0,2579.7,8.0]
[1746922491852,0.46397427,2580.9,2579.8,0.03875646]
[1746922492057,0.7652,2581.0,2579.8,0.03875646]
[1746922492254,0.7652,2581.0,2579.7,9.2731]
[1746922492567,0.7526,2580.8,2579.8,0.03875718]
[1746922492766,0.7526,2580.8,2579.6,4.731]
[1746922493254,0.7526,2580.8,2579.7,8.0]
[1746922493457,0.7526,2580.8,2579.7,8.03875822]
[1746922493760,0.7526,2580.8,2579.8,0.55]
[1746922493955,0.7526,2580.8,2579.9,0.89762979]
[1746922494366,0.7526,2580.8,2579.8,0.55]
[1746922494594,0.7526,2580.8,2579.4,0.7577]
[1746922494770,0.7526,2580.8,2579.7,8.0]
[1746922494954,0.7526,2580.8,2579.7,8.0387597]
[1746922496197,0.7526,2580.8,2579.7,0.0387597]
[1746922496499,0.55106,2580.7,2579.4,8.7577]
[1746922496703,0.76796233,2580.7,2579.4,8.7577]
[1746922496988,4.64294817,2580.7,2579.4,8.7577]
[1746922497195,0.7751,2580.5,2579.4,8.0]
[1746922497356,0.7751,2580.5,2579.4,0.03876027]
[1746922497892,0.7751,2580.5,2579.4,0.86319875]
[1746922499598,0.7751,2580.1,2579.2,2.54176165]
[1746922499798,4.97483909,2580.0,2579.2,2.54176165]
[1746922500303,3.87621402,2579.9,2579.2,2.54176165]
[1746922500788,0.6251,2579.8,2579.2,2.54176165]
[1746922500968,1.66588865,2579.8,2579.2,2.54176165]
[1746922501155,1.04078865,2579.8,2579.2,2.54176165]
[1746922501358,3.87672029,2579.5,2579.2,2.54176165]
[1746922501578,12.759,2580.0,2579.2,2.54176165]
[1746922501786,7.34807573,2579.8,2579.2,2.54176165]
[1746922501983,0.73480757,2579.7,2579.2,2.54176165]
[1746922502594,4.759,2580.0,2579.2,2.54176165]
[1746922502803,4.759,2580.7,2579.4,0.55]
[1746922503010,4.759,2580.7,2579.5,0.83505683]
[1746922503307,8.23078235,2580.6,2579.3,0.55]
[1746922503601,2.58479711,2581.1,2579.5,0.55]
[1746922503803,2.58479711,2581.1,2579.9,0.55]
[1746922504104,2.58479711,2581.1,2580.1,8.55]
[1746922504402,2.58479711,2581.1,2580.3,0.55]
[1746922504981,2.58479711,2581.1,2580.3,0.84774799]
[1746922505180,2.58479711,2581.1,2580.5,1.3504]
[1746922505390,2.58479711,2581.1,2580.7,0.55]
[1746922505610,2.58479711,2581.1,2580.8,0.03874076]
[1746922505983,2.58479711,2581.1,2581.0,8.55]
[1746922506169,2.58479711,2581.1,2581.0,10.67967408]
[1746922506365,3.30091373,2581.8,2581.2,0.8004]
[1746922506605,3.30091373,2581.8,2581.3,0.58873014]
[1746922506911,3.30091373,2581.8,2581.3,0.55]
[1746922507112,3.47178235,2582.2,2581.2,0.8004]
[1746922507403,4.706,2582.0,2580.7,8.0]
[1746922507577,4.706,2582.0,2580.9,0.55]
[1746922507980,4.706,2582.0,2580.8,0.8004]
[1746922508218,0.7994,2581.7,2580.0,8.8004]
[1746922508397,0.42711824,2581.6,2580.1,1.13421617]
[1746922508771,0.7994,2581.7,2580.2,0.83914128]
[1746922508971,0.7994,2581.7,2580.5,0.55]
[1746922509171,5.5054,2582.0,2580.7,8.55]
[1746922509586,5.5054,2582.0,2580.9,0.55]
[1746922509925,5.5054,2582.0,2581.1,0.8004]
[1746922510143,5.5054,2582.0,2581.2,0.03873707]
[1746922510421,9.37845329,2582.0,2580.8,0.7782]
[1746922510623,3.87313858,2581.9,2580.8,0.7782]
[1746922510796,3.47178235,2581.4,2580.7,2.54176165]
[1746922511002,7.34573806,2581.4,2580.7,2.54176165]
[1746922511203,0.73457381,2581.3,2580.7,2.54176165]
[1746922511811,3.47178235,2581.4,2580.7,2.54176165]
[1746922513065,7.34569909,2581.4,2580.1,0.55]
[1746922513220,7.34569909,2581.4,2580.0,8.7782]
[1746922513221,0.7648,2581.3,2580.0,8.7782]
[1746922513424,0.42365824,2581.2,2580.0,8.7782]
[1746922513603,4.706,2581.1,2580.0,8.7782]
[1746922514426,0.7648,2581.3,2580.0,8.7782]
[1746922514427,0.7648,2581.3,2580.1,0.55]
[1746922514632,5.4708,2581.3,2580.1,0.55]
[1746922514990,5.4708,2581.3,2580.2,0.03874929]
[1746922515321,0.57568986,2581.2,2580.2,0.03874929]
[1746922515561,3.47178235,2581.1,2580.0,8.7782]
[1746922515826,3.47178235,2581.1,2579.8,7.22876165]
[1746922515827,7.34681401,2580.7,2579.8,2.54176165]
[1746922515987,3.47178235,2580.7,2579.8,2.54176165]
[1746922516185,3.81896059,2580.7,2579.8,2.54176165]
[1746922516402,0.75,2581.0,2579.9,0.03875874]
[1746922516615,0.75,2581.0,2579.9,8.0]
[1746922517128,0.75,2581.0,2579.6,0.7977]
[1746922517427,3.87484297,2580.8,2579.6,0.7977]
[1746922517627,0.75,2581.0,2579.6,0.7977]
[1746922517827,0.42217823,2580.9,2579.7,0.91852877]
[1746922518003,0.42217823,2580.9,2579.8,0.55]
[1746922518202,0.75,2581.0,2579.9,0.03875388]
[1746922518402,8.17778235,2581.3,2580.0,0.55]
[1746922518600,8.92778235,2581.3,2580.1,0.83644979]
[1746922518833,8.92778235,2581.3,2580.1,0.7977]
[1746922518834,7.34651831,2580.9,2580.1,0.7977]